[Event "GER-ch Youth-U18w 2023"]
[Site "Willingen"]
[Date "2023.06.01"]
[Round "7.8"]
[White "Kieckbusch, Lotta"]
[Black "Doll, Rebecca"]
[Result "0-1"]
[Annotator "TA"]
[ECO "C54"]
[WhiteElo "1308"]
[BlackElo "1918"]
[PlyCount "92"]
[EventDate "2022.06.05"]
[EventType "swiss"]
[EventRounds "9"]
[EventCountry "GER"]
[SourceTitle "playchess.com"]
[Source "ChessBase"]
[SourceQuality "1"]
[TimeControl "40/4500+30:900+30"]

{[%evp 18,92,1,0,0,3,6,-20,-26,-29,-20,-22,-5,-4,-5,-3,-5,-6,36,25,27,39,35,25,27,27,75,25,64,54,56,58,56,51,146,109,116,101,112,20,29,9,13,0,0,-60,0,-4,0,-143,-120,-171,-195,-242,-234,-256,-257,-264,-218,-336,-348,-347,-310,-366,-340,-362,-332,-375,-389,-588,-562,-739,-757,-1252,-1145,-29990,-710]} 1. e4 {[%emt 0:00:00]} e5 {[%emt 0:00:00][%cal Be7e5,Be5d4][%mdl 32]} 2. Nf3 {[%emt 0:00:00]} Nc6 {[%emt 0:00:00]} 3. d4 {[%emt 0:00:00]} exd4 {[%emt 0:00:00]} 4. Bc4 {[%emt 0:00:00]} Bc5 {[%emt 0:00:00]} 5. c3 {[%emt 0:00:00]} Nf6 {[%emt 0:00:00]} 6. e5 {[%emt 0:00:00]} d5 {[%emt 0:00:00]} 7. Bb5 {[%emt 0:00:00]} Ne4 {[%emt 0:00:00]} 8. cxd4 {[%emt 0:00:00]} Bb6 {[%emt 0:00:00]} 9. O-O {[%emt 0:00:00]} O-O {[%emt 0:00:00]} 10. Nc3 {[%emt 0:00:00]} Bg4 {[%emt 0:00:00][%cal Oc6d4] ...Nxd4! would be deadly. C54: Giuoco Piano: 4 c3 Nf6, main lines with 5 d4 and 5 d3.} 11. Bxc6 {[%emt 0:00:59]} bxc6 {[%emt 0:00:00]} 12. Qd3 {[%emt 0:09:46]} (12. h3 $5 {[%cal Rh3g4]} Bf5 13. Be3 $11) 12... Bf5 {[%emt 0:00:00][%cal Oe4g3] The position is equal.} 13. Qe2 {[%emt 0:06:05]} f6 {[%emt 0:01:53]} 14. Nh4 {[%emt 0:12:15] [#]} fxe5 $146 {[%emt 0:04:23]} ({Predecessor:} 14... Nxc3 15. bxc3 fxe5 16. Nxf5 Rxf5 17. g4 Rf7 18. Qxe5 Qd7 19. h3 Re8 20. Qg3 c5 {½-½ Putnam,L (2331)-Swiercz,D (2647) Speed Chess GP1 blitz 2021 (5)}) 15. Nxf5 {[%emt 0:00:52][%mdl 64] [#] Remove Defender} Rxf5 {[%emt 0:10:37]} 16. Nxe4 {[%emt 0:00:21]} dxe4 {[%emt 0:00:22]} 17. Qxe4 {[%emt 0:00:35]} Rh5 {[%emt 0:14:02]} 18. dxe5 {[%emt 0:00:57]} Qd5 {[%emt 0:09:50]} 19. Qxd5+ {[%emt 0:04:51]} cxd5 {[%emt 0:00:06]} 20. Bf4 {[%emt 0:04:53]} Rf5 {[%emt 0:02:19]} 21. Bg3 $36 {[%emt 0:02:33][%mdl 2048] White has the initiative.} Re8 {[%emt 0:04:37]} (21... g5 $11 {deserves consideration.}) 22. Rfe1 {[%emt 0:01:48]} (22. Rad1 $16) 22... Re6 {[%emt 0:00:26]} 23. Rad1 {[%emt 0:03:32]} c6 {[%emt 0:00:12]} 24. Re2 {[%emt 0:05:10]} Kf7 {[%emt 0:03:07]} 25. b4 {[%emt 0:04:21]} d4 {[%emt 0:08:07]} (25... a5 $14) 26. Rd3 {[%emt 0:02:50]} g5 {[%emt 0:03:50]} 27. h3 {[%emt 0:05:31]} Re8 {[%emt 0:05:15]} 28. Bh2 {[%emt 0:05:14]} (28. Rc2 $16) 28... Ke6 $1 $11 {[%emt 0:00:10]} 29. Rd1 {[%emt 0:03:47]} Kd5 {[%emt 0:03:28]} 30. g4 {[%emt 0:00:46]} (30. Rc2 {looks sharper.} a5 31. Rdc1 d3 32. Rd1) 30... Rf7 {[%emt 0:02:06]} 31. Kf1 {[%emt 0:02:05]} (31. a4 $11) 31... Re6 {[%emt 0:01:21]} (31... Rf3 $1 $15) 32. a3 {[%emt 0:01:50]} Kc4 {[%emt 0:02:01]} 33. Red2 {[%emt 0:03:22] [#]} (33. Kg2 $11) 33... Rf3 $1 $17 {[%emt 0:06:48][%csl LRa3,LRh3] Black is more active.} 34. Kg2 {[%emt 0:03:48]} (34. Rc1+ $17 Kd5 35. a4) 34... Rxa3 $19 {[%emt 0:00:47]} 35. f4 {[%emt 0:01:48]} (35. Rb1 $142) 35... gxf4 {[%emt 0:00:10]} (35... Kxb4 36. f5 Re8 37. e6 $18) 36. Bxf4 {[%emt 0:00:08]} Rb3 {[%emt 0:02:10] Dodges Rb1} (36... Kxb4 $2 37. Rb1+ Kc4 38. Bg3 $19) 37. h4 {[%emt 0:01:02]} Rxb4 {[%emt 0:00:18]} (37... Kxb4 $2 {is the wrong capture.} 38. Rxd4+ Bxd4 39. Rxd4+ Kc5 40. Rd7 $19) 38. Kf3 {[%emt 0:01:15]} (38. Rf2 $142) 38... Kd5 {[%emt 0:00:41]} 39. g5 {[%emt 0:00:49]} Bc7 {[%emt 0:02:07][%cal Oa7a5]} 40. Ra2 {[%emt 0:01:02]} a5 {[%emt 0:01:55]} (40... Bxe5 $2 {too greedy.} 41. Bxe5 Rxe5 42. Rxa7 Re3+ 43. Kf4 Re4+ 44. Kf5 Rxh4 45. Rd7+ Kc4 46. Rc1+ Kd3 47. Rxc6 $19) 41. Bd2 {[%emt 0:15:48]} Rb7 {[%emt 0:00:00]} 42. Bf4 {[%emt 0:00:00]} c5 {[%emt 0:00:00]} (42... Bxe5 $2 {loses.} 43. Rxa5+ c5 44. Bxe5 Rxe5 45. Rc1 Re3+ 46. Kg4 Re4+ 47. Kh5 $19) 43. h5 {[%emt 0:00:00]} (43. Rc1 $142) 43... Bxe5 {[%emt 0:03:02]} 44. Bxe5 {[%emt 0:00:00]} Rxe5 {[%emt 0:00:07]} 45. Rxa5 {[%emt 0:00:00]} Rxg5 {[%emt 0:00:35] aiming for ...Rf7+.} 46. Rc1 {[%emt 0:00:00]} Rc7 {[%emt 0:00:38] Weighted Error Value: White=0.67/Black=0.14 (very precise)} (46... Rxh5 $2 47. Rcxc5+ Ke6 48. Rxh5 $18) (46... Rf7+ $142 47. Ke2 Rg2+ 48. Ke1 Rg1+ {[%mdl 64] Skewer} 49. Ke2 Rxc1 50. Kd2 Rh1 51. Kc2 Rf3 52. Rxc5+ Kxc5 53. Kd2 Rf2+ 54. Kd3 Rh3+ 55. Ke4 Re3#) 0-1

[Event "GER-ch Youth-U18w 2023"]
[Site "Willingen"]
[Date "2023.06.01"]
[Round "7.9"]
[White "Dohon, Maria-Johanna"]
[Black "Henninger, Claire"]
[Result "0-1"]
[Annotator "NA RC COMBH"]
[ECO "B12"]
[WhiteElo "1507"]
[BlackElo "1610"]
[PlyCount "78"]
[EventDate "2022.06.05"]
[EventType "swiss"]
[EventRounds "9"]
[EventCountry "GER"]
[SourceTitle "playchess.com"]
[Source "ChessBase"]
[SourceQuality "1"]
[TimeControl "40/4500+30:900+30"]

1. e4 {[%emt 0:00:00]} c6 {[%emt 0:00:00]} 2. d4 {[%emt 0:00:00]} d5 {[%emt 0:00:00]} 3. e5 {[%emt 0:00:00]} Bf5 {[%emt 0:00:00]} 4. h4 {[%emt 0:00:00]} h6 {[%emt 0:00:00]} 5. g4 {[%emt 0:00:00]} Be4 {[%emt 0:00:00]} 6. f3 {[%emt 0:00:00]} Bh7 {[%emt 0:00:00]} 7. e6 {[%emt 0:00:00]} fxe6 {[%emt 0:00:00]} 8. Bd3 {[%emt 0:00:00]} Bxd3 {[%emt 0:00:00]} 9. Qxd3 {[%emt 0:00:00]} Nf6 {[%emt 0:03:52]} 10. Ne2 {[%emt 0:05:10]} Qa5+ {[%emt 0:08:11]} 11. Bd2 {[%emt 0:06:05]} Qb5 {[%emt 0:05:17]} 12. Qg6+ {[%emt 0:09:08]} Kd7 {[%emt 0:06:07]} 13. Nbc3 {[%emt 0:03:38]} Qa6 {[%emt 0:13:48]} 14. O-O {[%emt 0:06:57]} c5 {[%emt 0:09:51]} 15. Rfe1 {[%emt 0:11:47]} Nc6 {[%emt 0:02:57]} 16. f4 {[%emt 0:17:25]} cxd4 {[%emt 0:05:59]} 17. Nd1 {[%emt 0:00:48]} Ne4 {[%emt 0:03:40]} 18. Bc1 {[%emt 0:02:55]} d3 {[%emt 0:06:31]} 19. cxd3 {[%emt 0:03:39]} Qxd3 {[%emt 0:00:48]} 20. a3 {[%emt 0:06:03]} Nf2 {[%emt 0:02:23]} 21. f5 {[%emt 0:06:01]} Nh3+ {[%emt 0:01:37]} 22. Kg2 {[%emt 0:00:42]} e5 {[%emt 0:07:26]} 23. Qe6+ {[%emt 0:01:00]} Kc7 {[%emt 0:00:47]} 24. Ndc3 {[%emt 0:00:32]} e4 {[%emt 0:04:31]} 25. Nxd5+ {[%emt 0:02:04]} Kd8 {[%emt 0:00:34]} 26. Ne3 {[%emt 0:00:48]} Qxe2+ {[%emt 0:00:49]} 27. Rxe2 {[%emt 0:01:28]} Nf4+ {[%emt 0:00:08]} 28. Kf2 {[%emt 0:00:15]} Nxe6 {[%emt 0:00:05]} 29. fxe6 {[%emt 0:00:04]} Ne5 {[%emt 0:01:53]} 30. b4 {[%emt 0:01:51]} g5 {[%emt 0:00:35]} 31. h5 {[%emt 0:00:45]} Bg7 {[%emt 0:00:44]} 32. Raa2 {[%emt 0:00:21]} Nd3+ {[%emt 0:00:29]} 33. Kf1 {[%emt 0:00:42]} Nxc1 {[%emt 0:00:29]} 34. Red2+ {[%emt 0:00:36]} Nd3 {[%emt 0:00:33]} 35. Rac2 {[%emt 0:00:45]} Rc8 {[%emt 0:00:28]} 36. Nd5 {[%emt 0:00:59]} Rxc2 {[%emt 0:01:22]} 37. Rxc2 {[%emt 0:00:08]} Rf8+ {[%emt 0:00:39]} 38. Kg1 {[%emt 0:00:48]} Bd4+ {[%emt 0:00:29]} 39. Kh2 {[%emt 0:00:15]} Rf2+ {[%emt 0:00:23]} 0-1

[Event "GER-ch Youth-U18w 2023"]
[Site "Willingen"]
[Date "2023.06.01"]
[Round "7.10"]
[White "Evering, Enna"]
[Black "Zoellner, Bente"]
[Result "0-1"]
[Annotator "NA RC COMBH"]
[ECO "B33"]
[WhiteElo "1548"]
[BlackElo "1700"]
[PlyCount "58"]
[EventDate "2022.06.05"]
[EventType "swiss"]
[EventRounds "9"]
[EventCountry "GER"]
[SourceTitle "playchess.com"]
[Source "ChessBase"]
[SourceQuality "1"]
[TimeControl "40/4500+30:900+30"]

1. e4 {[%emt 0:00:00]} c5 {[%emt 0:00:00]} 2. Nf3 {[%emt 0:00:00]} Nc6 {[%emt 0:00:00]} 3. d4 {[%emt 0:00:00]} cxd4 {[%emt 0:00:00]} 4. Nxd4 {[%emt 0:00:00]} Nf6 {[%emt 0:00:00]} 5. Nc3 {[%emt 0:00:00]} e5 {[%emt 0:00:00]} 6. Ndb5 {[%emt 0:00:00]} d6 {[%emt 0:00:00]} 7. Nd5 {[%emt 0:00:00]} Nxd5 {[%emt 0:00:00]} 8. exd5 {[%emt 0:00:00]} Nb8 {[%emt 0:00:00]} 9. a4 {[%emt 0:00:00]} Be7 {[%emt 0:00:00]} 10. Be2 {[%emt 0:00:00]} O-O {[%emt 0:00:00]} 11. Bd2 {[%emt 0:00:00]} Nd7 {[%emt 0:00:00]} 12. O-O {[%emt 0:00:00]} Nf6 {[%emt 0:00:00]} 13. Be3 {[%emt 0:08:41]} b6 {[%emt 0:07:57]} 14. a5 {[%emt 0:11:21]} Bb7 {[%emt 0:07:06]} 15. c4 {[%emt 0:12:05]} bxa5 {[%emt 0:06:59]} 16. Nxa7 {[%emt 0:04:09]} Ne4 {[%emt 0:07:11]} 17. Qa4 {[%emt 0:12:09]} Bg5 {[%emt 0:04:22]} 18. Qxa5 {[%emt 0:07:57]} Bxe3 {[%emt 0:02:13]} 19. fxe3 {[%emt 0:00:55]} Qg5 {[%emt 0:01:45]} 20. Ra3 {[%emt 0:03:36]} Bc8 {[%emt 0:09:11]} 21. Bf3 {[%emt 0:04:50]} Nc5 {[%emt 0:04:37]} 22. Qc7 {[%emt 0:04:48]} e4 {[%emt 0:03:10]} 23. Be2 {[%emt 0:01:16]} Nd3 {[%emt 0:04:20]} 24. Bxd3 {[%emt 0:03:06]} Qxe3+ {[%emt 0:01:27]} 25. Kh1 {[%emt 0:01:23]} exd3 {[%emt 0:01:20]} 26. Nxc8 {[%emt 0:03:11]} Raxc8 {[%emt 0:06:13]} 27. Qxd6 {[%emt 0:02:20]} Qe2 {[%emt 0:04:18]} 28. Kg1 {[%emt 0:03:18]} Rxc4 {[%emt 0:02:19]} 29. Qa6 {[%emt 0:00:16]} Rc2 {[%emt 0:01:47]} 0-1

[Event "GER-ch Youth-U18w 2023"]
[Site "Willingen"]
[Date "2023.06.01"]
[Round "7.11"]
[White "Glowiak, Alexandra"]
[Black "Avetyan, Manan"]
[Result "1-0"]
[Annotator "NA RC COMBH"]
[ECO "C54"]
[WhiteElo "1660"]
[BlackElo "1368"]
[PlyCount "90"]
[EventDate "2022.06.05"]
[EventType "swiss"]
[EventRounds "9"]
[EventCountry "GER"]
[SourceTitle "playchess.com"]
[Source "ChessBase"]
[SourceQuality "1"]
[TimeControl "40/4500+30:900+30"]

1. e4 {[%emt 0:00:00]} e5 {[%emt 0:00:00]} 2. Nf3 {[%emt 0:00:00]} Nc6 {[%emt 0:00:00]} 3. Bc4 {[%emt 0:00:00]} Bc5 {[%emt 0:00:00]} 4. c3 {[%emt 0:00:00]} Nf6 {[%emt 0:00:00]} 5. d3 {[%emt 0:00:00]} d6 {[%emt 0:00:00]} 6. O-O {[%emt 0:00:00]} a6 {[%emt 0:00:00]} 7. Bb3 {[%emt 0:00:00]} h6 {[%emt 0:00:00]} 8. Re1 {[%emt 0:00:00]} Ba7 {[%emt 0:00:00]} 9. Bc2 {[%emt 0:00:00]} Bg4 {[%emt 0:10:46]} 10. Be3 {[%emt 0:26:32]} Bxe3 {[%emt 0:08:04]} 11. Rxe3 {[%emt 0:02:19]} Qd7 {[%emt 0:03:17]} 12. Nbd2 {[%emt 0:03:12]} Bh5 {[%emt 0:09:14]} 13. Nf1 {[%emt 0:05:31]} g5 {[%emt 0:04:16]} 14. Ng3 {[%emt 0:05:51]} Bg6 {[%emt 0:02:00]} 15. d4 {[%emt 0:02:16]} O-O-O {[%emt 0:04:10]} 16. Qd2 {[%emt 0:09:32]} Qe7 {[%emt 0:05:10]} 17. Rd1 {[%emt 0:05:37]} Bh7 {[%emt 0:03:38]} 18. dxe5 {[%emt 0:05:55]} dxe5 {[%emt 0:01:49]} 19. Qe2 {[%emt 0:03:32]} Rhg8 {[%emt 0:05:10]} 20. Rxd8+ {[%emt 0:05:14]} Rxd8 {[%emt 0:02:09]} 21. Nf5 {[%emt 0:04:43]} Qe6 {[%emt 0:05:21]} 22. Bb3 {[%emt 0:00:47]} Qd7 {[%emt 0:00:12]} 23. Nxh6 {[%emt 0:00:40]} Bg6 {[%emt 0:02:38]} 24. Nxg5 {[%emt 0:01:48]} Rf8 {[%emt 0:14:06]} 25. Qf3 {[%emt 0:02:28]} Qe7 {[%emt 0:04:09]} 26. Nf5 {[%emt 0:00:14]} Bxf5 {[%emt 0:00:40]} 27. Qxf5+ {[%emt 0:00:11]} Kb8 {[%emt 0:00:03]} 28. Nh7 {[%emt 0:01:14]} Nxh7 29. Qxh7 {[%emt 0:00:01]} Na5 {[%emt 0:01:34]} 30. h4 {[%emt 0:00:51]} Qd7 {[%emt 0:00:40]} 31. Qh5 {[%emt 0:01:07]} f6 {[%emt 0:01:10]} 32. Qe2 {[%emt 0:00:38]} Rh8 {[%emt 0:00:37]} 33. h5 {[%emt 0:00:21]} Nxb3 {[%emt 0:00:24]} 34. axb3 {[%emt 0:00:02]} Qe6 {[%emt 0:00:23]} 35. b4 {[%emt 0:00:15]} Qf7 {[%emt 0:00:29]} 36. Rh3 {[%emt 0:00:26]} f5 {[%emt 0:00:31]} 37. exf5 {[%emt 0:00:35]} Qxf5 {[%emt 0:00:01]} 38. h6 {[%emt 0:01:10]} Qg5 {[%emt 0:00:42]} 39. Qe3 {[%emt 0:00:45]} Qf6 {[%emt 0:00:56]} 40. h7 {[%emt 0:00:51]} Qf5 {[%emt 0:00:35]} 41. Qh6 {[%emt 0:00:00]} Qf7 {[%emt 0:00:00]} 42. g4 {[%emt 0:00:00]} Qd7 {[%emt 0:01:56]} 43. Qg6 {[%emt 0:04:25]} Qd1+ {[%emt 0:01:23]} 44. Kh2 {[%emt 0:06:14]} Qf1 {[%emt 0:00:18]} 45. Qg8+ {[%emt 0:03:44]} Ka7 {[%emt 0:00:02]} 1-0

[Event "GER-ch Youth-U18w 2023"]
[Site "Willingen"]
[Date "2023.06.01"]
[Round "7.12"]
[White "Foltin, Alica"]
[Black "Gossing, Marie-Sophie"]
[Result "1-0"]
[Annotator "NA RC COMBH"]
[ECO "A45"]
[WhiteElo "1540"]
[BlackElo "1395"]
[PlyCount "99"]
[EventDate "2022.06.05"]
[EventType "swiss"]
[EventRounds "9"]
[EventCountry "GER"]
[SourceTitle "playchess.com"]
[Source "ChessBase"]
[SourceQuality "1"]
[TimeControl "40/4500+30:900+30"]

1. d4 {[%emt 0:00:00]} Nf6 {[%emt 0:00:00]} 2. Bg5 {[%emt 0:00:00]} g6 {[%emt 0:00:00]} 3. Bxf6 {[%emt 0:00:00]} exf6 {[%emt 0:00:00]} 4. c4 {[%emt 0:00:00]} Bg7 {[%emt 0:00:00]} 5. Nc3 {[%emt 0:00:00]} O-O {[%emt 0:00:00]} 6. Nf3 {[%emt 0:00:00]} d6 {[%emt 0:00:00]} 7. e3 {[%emt 0:00:00]} Nd7 {[%emt 0:09:56]} 8. Bd3 {[%emt 0:00:00]} f5 {[%emt 0:07:33]} 9. Qc2 {[%emt 0:00:00]} c5 {[%emt 0:05:56]} 10. d5 {[%emt 0:00:00]} Ne5 {[%emt 0:05:43]} 11. Nxe5 {[%emt 0:00:00]} Bxe5 {[%emt 0:00:16]} 12. O-O-O {[%emt 0:03:38]} Qa5 {[%emt 0:03:44]} 13. Kb1 {[%emt 0:03:47]} Bxc3 {[%emt 0:02:27]} 14. Qxc3 {[%emt 0:00:10]} Qxc3 {[%emt 0:00:10]} 15. bxc3 {[%emt 0:00:03]} Bd7 {[%emt 0:05:00]} 16. Rd2 {[%emt 0:01:30]} a6 {[%emt 0:01:02]} 17. Rb2 {[%emt 0:01:17]} Rfb8 {[%emt 0:01:44]} 18. Rb6 {[%emt 0:00:08]} Be8 {[%emt 0:05:49]} 19. Kc2 {[%emt 0:01:12]} Kf8 {[%emt 0:04:01]} 20. Rhb1 {[%emt 0:01:00]} Ra7 {[%emt 0:01:17]} 21. f3 {[%emt 0:07:22]} Ke7 {[%emt 0:06:53]} 22. e4 {[%emt 0:01:27]} fxe4 {[%emt 0:04:10]} 23. fxe4 {[%emt 0:00:28]} f6 {[%emt 0:00:20]} 24. Kd2 {[%emt 0:00:23]} Kd7 {[%emt 0:01:14]} 25. Be2 {[%emt 0:03:20]} Kc7 {[%emt 0:01:15]} 26. Bg4 {[%emt 0:00:21]} Bd7 {[%emt 0:01:28]} 27. Bxd7 {[%emt 0:00:37]} Kxd7 {[%emt 0:00:05]} 28. a4 {[%emt 0:00:11]} a5 {[%emt 0:00:51]} 29. Rf1 {[%emt 0:01:54]} Kc7 {[%emt 0:00:47]} 30. Rb2 {[%emt 0:00:18]} Rf8 {[%emt 0:01:00]} 31. Ke3 {[%emt 0:02:38]} Raa8 {[%emt 0:00:35]} 32. Rbf2 {[%emt 0:00:16]} f5 {[%emt 0:03:39]} 33. exf5 {[%emt 0:01:09]} Rae8+ {[%emt 0:00:57]} 34. Kd3 {[%emt 0:00:33]} g5 {[%emt 0:02:18]} 35. Re2 {[%emt 0:01:08]} Kd7 {[%emt 0:02:07]} 36. Re6 {[%emt 0:01:25]} h5 {[%emt 0:01:57]} 37. h3 {[%emt 0:02:06]} Kc7 38. g4 {[%emt 0:02:59]} hxg4 {[%emt 0:03:54]} 39. hxg4 {[%emt 0:00:00]} Rh8 {[%emt 0:03:54]} 40. Rxe8 {[%emt 0:00:00]} Rxe8 {[%emt 0:00:03]} 41. f6 {[%emt 0:15:25]} Kd7 {[%emt 0:00:00]} 42. Rh1 {[%emt 0:00:00]} Rf8 {[%emt 0:00:00]} 43. Rh6 {[%emt 0:00:00]} b6 {[%emt 0:00:00]} 44. Ke4 {[%emt 0:00:00]} Re8+ {[%emt 0:00:00]} 45. Kf5 {[%emt 0:00:00]} Re5+ {[%emt 0:00:00]} 46. Kg6 {[%emt 0:00:00]} Re8 {[%emt 0:00:00]} 47. Rh7+ {[%emt 0:00:00]} Kd8 {[%emt 0:00:00]} 48. f7 {[%emt 0:00:00]} Rf8 {[%emt 0:00:22]} 49. Kf6 {[%emt 0:00:00]} Kd7 {[%emt 0:01:15]} 50. Rg7 {[%emt 0:00:00]} 1-0

[Event "GER-ch Youth-U18w 2023"]
[Site "Willingen"]
[Date "2023.06.02"]
[Round "8.1"]
[White "Reuter, Elisa"]
[Black "Heutling, Elina"]
[Result "1-0"]
[Annotator "TA"]
[ECO "B92"]
[WhiteElo "1944"]
[BlackElo "1878"]
[PlyCount "89"]
[EventDate "2022.06.05"]
[EventType "swiss"]
[EventRounds "9"]
[EventCountry "GER"]
[SourceTitle "playchess.com"]
[Source "ChessBase"]
[SourceQuality "1"]
[TimeControl "40/4500+30:900+30"]

{[%evp 21,89,-7,0,0,0,-8,-4,-4,0,0,0,0,0,0,0,-6,0,0,0,0,0,0,26,-84,-32,-127,0,0,0,-22,-21,-32,-24,-14,0,0,0,-84,0,0,0,0,0,0,0,0,302,246,557,556,525,498,559,556,450,502,1069,1133,1481,1933,1868,1891,29980,29980,29980,29978,29978,29978,29981,29982]} 1. e4 {[%emt 0:00:00]} c5 {[%emt 0:00:00]} 2. Nf3 {[%emt 0:00:00]} d6 {[%emt 0:00:00]} 3. d4 {[%emt 0:00:00]} cxd4 {[%emt 0:00:00]} 4. Nxd4 {[%emt 0:00:00]} Nf6 {[%emt 0:00:00]} 5. Nc3 {[%emt 0:00:00]} a6 {[%emt 0:00:00]} 6. Be2 {[%emt 0:00:00]} e5 {[%emt 0:00:00]} 7. Nb3 {[%emt 0:00:00]} Be7 {[%emt 0:00:00]} 8. O-O {[%emt 0:00:00]} O-O {[%emt 0:00:00]} 9. Kh1 {[%emt 0:00:00]} b6 {[%emt 0:00:00][%cal Bb7b6,Bb6b5][%mdl 32]} 10. Be3 {[%emt 0:00:00]} Bb7 {[%emt 0:00:00]} 11. f3 {[%emt 0:00:00]} b5 {[%emt 0:00:00]} 12. a4 {[%emt 0:00:00] B92: Sicilian Najdorf: 6 Be2.} b4 {[%emt 0:00:00]} 13. Nd5 {[%emt 0:00:00]} Nxd5 {[%emt 0:00:00]} 14. exd5 {[%emt 0:00:00] The position is equal.} Nd7 {[%emt 0:00:00]} 15. c3 {[%emt 0:00:00]} bxc3 {[%emt 0:00:00]} 16. bxc3 {[%emt 0:00:00]} Bg5 {[%emt 0:00:00]} 17. Bxg5 {[%emt 0:08:15]} Qxg5 {[%emt 0:00:00] [#]} 18. a5 $146 {[%emt 0:03:30]} ({Predecessor:} 18. Rb1 Qd8 19. c4 Qc7 20. c5 Nxc5 21. Nxc5 dxc5 22. a5 Qd7 23. Qc2 c4 24. Bxc4 {1-0 Deepan Chakkravarthy,J (2534)-Can,E (2586) Dubai op 21st 2019 (4)}) 18... f5 {[%emt 0:26:37]} 19. c4 {[%emt 0:13:37]} Rf6 {[%emt 0:14:29]} 20. Qd2 {[%emt 0:11:47]} f4 {[%emt 0:05:45]} 21. Bd3 {[%emt 0:03:40]} Rh6 {[%emt 0:02:42] [#]} (21... Qh5 $5 {[%cal Rf6h6]}) 22. g3 {[%emt 0:03:19]} Qxg3 $17 {[%emt 0:01:34] aiming for ...Bc8.} 23. Qg2 {[%emt 0:06:19] [#]} ({Better is} 23. Qe2 $1 $15) 23... Qh4 {[%emt 0:08:48]} (23... Nf6 $1 $17 {...Bc8 would be deadly.} 24. Nd2 Bc8) 24. Rg1 $11 {[%emt 0:06:58][%csl Gg1][%cal Rg2g7]} g6 {[%emt 0:00:46]} 25. Ra2 {[%emt 0:02:50]} Nf6 {[%emt 0:08:17] Strongly threatening ...Nh5.} 26. Qg5 {[%emt 0:02:20] Prevents Nh5.} Qxg5 {[%emt 0:00:49]} 27. Rxg5 {[%emt 0:00:05]} Bc8 {[%emt 0:03:01]} 28. Nd2 $1 {[%emt 0:02:25]} Rb8 {[%emt 0:05:11] Prevents Rb2.} 29. Rg1 {[%emt 0:01:48]} (29. c5 $1 $11 {keeps the balance.}) 29... Rh3 {[%emt 0:04:03]} (29... Kf7 $17 30. Rb1 Rxb1+ 31. Bxb1 g5) 30. Rb1 $1 {[%emt 0:04:29]} Rxb1+ {[%emt 0:00:36]} 31. Bxb1 {[%emt 0:00:06]} Bf5 {[%emt 0:05:28] Hoping for ...Bxb1.} 32. Rb2 {[%emt 0:01:29]} Bxb1 {[%emt 0:00:26]} 33. Rxb1 {[%emt 0:00:03][%mdl 4096] Endgame KRN-KRN} e4 $2 {[%emt 0:00:54][%mdl 8192]} 34. Kg2 $18 {[%emt 0:01:39]} Rh5 {[%emt 0:00:18]} (34... Rh4 {is a better chance.}) 35. Nxe4 {[%emt 0:00:42]} Nxe4 {[%emt 0:01:03]} 36. fxe4 {[%emt 0:00:05] KR-KR} f3+ {[%emt 0:01:27]} 37. Kxf3 {[%emt 0:01:52]} Rh3+ {[%emt 0:00:53]} 38. Kf4 {[%emt 0:01:06] And now e5 would win.} Rc3 {[%emt 0:00:45]} (38... Rh4+ $142 39. Ke3 Rh3+ 40. Kd4 Rxh2) 39. Rb6 {[%emt 0:00:35][%csl LRa6,LRd6]} Rxc4 {[%emt 0:00:05]} 40. Rxd6 {[%emt 0:00:03]} Kf7 {[%emt 0:00:47]} 41. Rxa6 {[%emt 0:15:24]} Ra4 {[%emt 0:00:00]} 42. Ke5 {[%emt 0:00:00] White mates.} Ke7 {[%emt 0:00:00]} 43. Ra7+ {[%emt 0:00:00]} Ke8 {[%emt 0:00:00]} 44. Rxh7 {[%emt 0:00:00]} Rxa5 {[%emt 0:00:00]} 45. Ke6 {[%emt 0:00:00] Weighted Error Value: White=0.17 (very precise) /Black=0.60} 1-0